fUSD/lending_fUSD_20260506
["ID","MTS","AMOUNT","RATE_DAILY","PERIOD"]
[421710377,1778051448000,-14746.43,0.000288,7]
[421710341,1778051448000,-11878.85235123,0.00028271,2]
[421710339,1778051448000,-252133.9285955,0.00028227,2]
[421710350,1778051448000,-12774.14957409,0.00028381,2]
[421710346,1778051448000,-219.4359344,0.00028337,2]
[421710343,1778051448000,-500.0,0.00028316,16]
[421710348,1778051448000,-1561.8933379,0.00028377,2]
[421710349,1778051448000,-200.0,0.00028379,2]
[421710347,1778051448000,-500.0,0.00028366,3]
[421710345,1778051448000,-151.0,0.00028326,2]
[421710344,1778051448000,-12318.36988823,0.00028326,2]
[421710340,1778051448000,-2732.3,0.00028267,2]
[421710342,1778051448000,-151.0,0.00028271,2]
[421710376,1778051448000,-156.78,0.0002878,7]
[421710354,1778051448000,-151.0,0.00028436,2]
[421710360,1778051448000,-151.0,0.00028491,2]
[421710361,1778051448000,-199.36,0.00028493,2]
[421710353,1778051448000,-13246.79310833,0.00028436,2]
[421710355,1778051448000,-3841.1302201,0.00028455,2]
[421710363,1778051448000,-157.36,0.0002863,2]
[421710362,1778051448000,-632.20967093,0.0002853,5]
[421710359,1778051448000,-7761.0463527,0.00028491,2]
[421710364,1778051448000,-156.78,0.0002863,2]
[421710356,1778051448000,-1481.23780761,0.00028489,2]
[421710357,1778051448000,-181.08010149,0.00028489,2]
[421710358,1778051448000,-771.01748645,0.00028489,2]
[421710366,1778051448000,-156.78,0.00028667,7]
[421710352,1778051448000,-212.44,0.00028406,7]
[421710404,1778051448000,-2000.0,0.00029052,2]
[421710405,1778051448000,-2000.0,0.00029052,2]
[421710399,1778051448000,-150.0,0.00029041,2]
[421710431,1778051448000,-1664.97863847,0.00029452,30]
[421710435,1778051448000,-1592.87721993,0.00029585,2]
[421710443,1778051448000,-240.31016824,0.0002999,2]
[421710434,1778051448000,-212.44,0.0002956,30]
[421710432,1778051448000,-150.0,0.00029534,2]
[421710433,1778051448000,-492.9626623,0.0002955,2]
[421710436,1778051448000,-194.72792766,0.00029585,2]
[421710442,1778051448000,-12626.07118196,0.00029908,2]
[421710437,1778051448000,-932.60764908,0.00029585,2]
[421710439,1778051448000,-500.0,0.00029596,4]
[421710441,1778051448000,-846.48838544,0.00029675,2]
[421710438,1778051448000,-170.0,0.00029588,2]
[421710419,1778051448000,-156.78,0.00029157,30]
[421710445,1778051448000,-1841.84846317,0.0003,2]
[421710446,1778051448000,-165.18283329,0.0003,2]
[421710448,1778051448000,-650.0,0.0003,2]
[421710447,1778051448000,-310.69232647,0.0003,2]
[421710450,1778051448000,-200.0,0.0003,2]
[421710449,1778051448000,-200.0,0.0003,2]
[421710452,1778051448000,-200.0,0.0003,2]
[421710451,1778051448000,-200.0,0.0003,2]
[421710455,1778051448000,-2000.0,0.00030008,2]
[421710456,1778051448000,-2000.0,0.00030008,2]
[421710453,1778051448000,-2000.0,0.00030008,2]
[421710454,1778051448000,-2000.0,0.00030008,2]
[421710393,1778051448000,-162.55277151,0.00029,7]
[421710444,1778051448000,-323.46322501,0.0003,2]
[421710428,1778051448000,-200.92336054,0.0002928,2]
[421710440,1778051448000,-14746.43,0.000296,7]
[421710430,1778051448000,-150.0,0.00029452,30]
[421710421,1778051448000,-500.0,0.00029166,17]
[421710398,1778051448000,-799.54513345,0.00029037,2]
[421710397,1778051448000,-187.78006525,0.00029037,2]
[421710394,1778051448000,-156.78,0.00029006,7]
[421710396,1778051448000,-1536.04360649,0.00029037,2]
[421710401,1778051448000,-2000.0,0.00029052,2]
[421710400,1778051448000,-156.78,0.00029044,30]
[421710409,1778051448000,-1625.0,0.00029052,2]
[421710413,1778051448000,-152.0,0.00029066,3]
[421710411,1778051448000,-157.36,0.00029055,2]
[421710412,1778051448000,-151.39,0.00029065,2]
[421710415,1778051448000,-227.09,0.00029087,2]
[421710414,1778051448000,-156.78,0.00029082,2]
[421710416,1778051448000,-157.36,0.00029091,7]
[421710410,1778051448000,-906.0,0.00029052,2]
[421710406,1778051448000,-2000.0,0.00029052,2]
[421710426,1778051448000,-156.9,0.00029232,7]
[421710429,1778051448000,-151.0,0.0002931,2]
[421710427,1778051448000,-212.44,0.00029271,7]
[421710418,1778051448000,-157.36,0.00029126,30]
[421710425,1778051448000,-157.53,0.00029232,30]
[421710423,1778051448000,-157.36,0.00029197,7]
[421710422,1778051448000,-156.78,0.00029195,2]
[421710424,1778051448000,-200.0,0.0002923,2]
[421710408,1778051448000,-2000.0,0.00029052,2]
[421710407,1778051448000,-2000.0,0.00029052,2]
[421710417,1778051448000,-156.78,0.00029119,7]
[421710420,1778051448000,-157.36,0.00029161,2]
[421710482,1778051449000,-150.0,0.00030137,30]
[421710504,1778051449000,-599.60298507,0.0003068,2]
[421710506,1778051449000,-200.0,0.00030737,2]
[421710495,1778051449000,-152.0,0.00030258,4]
[421710490,1778051449000,-510.6931762,0.00030183,2]
[421710500,1778051449000,-151.39,0.00030435,2]
[421710497,1778051449000,-469.04,0.000303,7]
[421710498,1778051449000,-14746.43,0.000304,7]
[421710494,1778051449000,-2732.3,0.00030239,2]
[421710503,1778051449000,-151.0,0.00030679,2]
[421710502,1778051449000,-180.0,0.00030532,5]
[421710491,1778051449000,-1062.41412854,0.000302,2]
[421710499,1778051449000,-184.97,0.00030411,120]
[421710501,1778051449000,-200.0,0.00030437,2]
[421710513,1778051449000,-542.6482391,0.00030945,2]
[421710507,1778051449000,-172.14,0.00030747,2]
[421710492,1778051449000,-401.06,0.000302,2]
[421710505,1778051449000,-209.40437684,0.00030681,2]
[421710509,1778051449000,-15847.2472871,0.00030903,120]
[421710519,1778051449000,-150.0,0.00031011,2]
[421710510,1778051449000,-631.75654827,0.00030903,120]
[421710520,1778051449000,-200.0,0.00031037,2]
[421710511,1778051449000,-200.0,0.00030932,2]
[421710508,1778051449000,-500.0,0.00030825,6]
[421710512,1778051449000,-500.0,0.00030942,21]
[421710514,1778051449000,-5738.1615599,0.00030945,2]
[421710515,1778051449000,-286.24644495,0.00030968,30]
[421710487,1778051449000,-500.0,0.00030183,2]
[421710486,1778051449000,-500.0,0.00030183,2]
[421710484,1778051449000,-157.0,0.00030168,3]
[421710458,1778051449000,-2000.0,0.00030008,2]
[421710489,1778051449000,-500.0,0.00030183,2]
[421710457,1778051449000,-2000.0,0.00030008,2]
[421710518,1778051449000,-207.86895535,0.00031,120]
[421710462,1778051449000,-2000.0,0.00030008,2]
[421710463,1778051449000,-2000.0,0.00030037,7]
[421710466,1778051449000,-2000.0,0.00030037,7]
[421710461,1778051449000,-2000.0,0.00030008,2]
[421710467,1778051449000,-2000.0,0.00030037,7]
[421710464,1778051449000,-2000.0,0.00030037,7]
[421710459,1778051449000,-2000.0,0.00030008,2]
[421710460,1778051449000,-2000.0,0.00030008,2]
[421710465,1778051449000,-2000.0,0.00030037,7]
[421710468,1778051449000,-2000.0,0.00030037,7]
[421710472,1778051449000,-500.0,0.00030041,19]
[421710473,1778051449000,-200.0,0.00030081,2]
[421710475,1778051449000,-201.93286099,0.00030133,2]
[421710469,1778051449000,-2000.0,0.00030037,7]
[421710470,1778051449000,-2000.0,0.00030037,7]
[421710474,1778051449000,-204.43944946,0.0003013,2]
[421710480,1778051449000,-3958.0,0.00030137,120]
[421710471,1778051449000,-227.4824174,0.00030037,7]
[421710476,1778051449000,-200.0,0.00030137,2]
[421710481,1778051449000,-1664.97863847,0.00030137,30]
[421710478,1778051449000,-1000.0,0.00030137,65]
[421710477,1778051449000,-200.0,0.00030137,40]
[421710479,1778051449000,-6321.0,0.00030137,120]
[421710483,1778051449000,-159.64,0.00030137,2]
[421710493,1778051449000,-500.0,0.0003021,5]
[421710496,1778051449000,-246.0,0.000303,7]
[421710488,1778051449000,-500.0,0.00030183,2]
[421710485,1778051449000,-500.0,0.00030183,2]
[421710516,1778051449000,-4884.43800563,0.00031,30]
[421710517,1778051449000,-10015.53395039,0.00031,120]
[421710528,1778051449000,-152.0,0.00031269,30]
[421710552,1778051449000,-184.0,0.0003171,10]
[421710556,1778051449000,-1176.43134313,0.000318,2]
[421710557,1778051449000,-1176.43134313,0.000318,2]
[421710555,1778051449000,-200.0,0.00031783,2]
[421710553,1778051449000,-184.320957,0.0003173,10]
[421710563,1778051449000,-228.54053186,0.00032,120]
[421710564,1778051449000,-381.87121067,0.00032,120]
[421710560,1778051449000,-500.0,0.0003187,23]
[421710572,1778051449000,-500.0,0.00032054,7]
[421710570,1778051449000,-162.55277151,0.00032,7]
[421710566,1778051449000,-1550.83875413,0.00032,120]
[421710561,1778051449000,-14746.43,0.000319,7]
[421710568,1778051449000,-1111.52520475,0.00032,120]
[421710565,1778051449000,-171.61789237,0.00032,120]
[421710562,1778051449000,-200.0,0.00031937,2]
[421710571,1778051449000,-151.0,0.00032048,2]
[421710569,1778051449000,-700.0,0.00032,2]
[421710567,1778051449000,-244.39532984,0.00032,120]
[421710574,1778051449000,-2732.3,0.0003221,5]
[421710573,1778051449000,-150.0,0.00032192,30]
[421710576,1778051449000,-1137.0,0.0003224,2]
[421710578,1778051449000,-1100.0,0.00032262,30]
[421710583,1778051449000,-263.0,0.00032269,30]
[421710584,1778051449000,-578.0,0.00032274,30]
[421710577,1778051449000,-342.0,0.00032262,30]
[421710581,1778051449000,-447.0,0.00032269,30]
[421710579,1778051449000,-427.0,0.00032262,30]
[421710582,1778051449000,-152.0,0.00032269,30]
[421710580,1778051449000,-153.0,0.00032262,30]
[421710551,1778051449000,-200.0,0.00031637,2]
[421710550,1778051449000,-2000.0,0.00031507,30]
[421710575,1778051449000,-200.0,0.00032237,2]
[421710547,1778051449000,-152.0,0.0003145,5]
[421710548,1778051449000,-469.04,0.000315,7]
[421710529,1778051449000,-263.0,0.00031269,30]
[421710525,1778051449000,-427.0,0.00031262,30]
[421710533,1778051449000,-200.0,0.00031337,2]
[421710523,1778051449000,-342.0,0.00031262,30]
[421710521,1778051449000,-14746.43,0.000311,7]
[421710531,1778051449000,-159.0,0.00031274,30]
[421710526,1778051449000,-153.0,0.00031262,30]
[421710527,1778051449000,-447.0,0.00031269,30]
[421710524,1778051449000,-1100.0,0.00031262,30]
[421710530,1778051449000,-578.0,0.00031274,30]
[421710532,1778051449000,-942.0,0.00031274,30]
[421710535,1778051449000,-1000.0,0.000314,7]
[421710544,1778051449000,-1600.0,0.00031443,2]
[421710522,1778051449000,-217.15233878,0.00031229,2]
[421710545,1778051449000,-1600.0,0.00031443,2]
[421710534,1778051449000,-56258.6838663,0.00031392,2]
[421710558,1778051449000,-151.39,0.00031805,2]
[421710549,1778051449000,-467.95,0.00031507,75]
[421710554,1778051449000,-225.18697532,0.00031777,2]
[421710542,1778051449000,-1600.0,0.00031443,2]
[421710539,1778051449000,-1600.0,0.00031443,2]
[421710559,1778051449000,-267.1856,0.00031808,30]
[421710541,1778051449000,-1600.0,0.00031443,2]
[421710543,1778051449000,-1600.0,0.00031443,2]
[421710540,1778051449000,-1600.0,0.00031443,2]
[421710536,1778051449000,-500.0,0.0003144,6]
[421710546,1778051449000,-1170.0,0.00031443,2]
[421710538,1778051449000,-1600.0,0.00031443,2]
[421710537,1778051449000,-1600.0,0.00031443,2]
[421710614,1778051450000,-500.0,0.00032877,2]
[421710618,1778051450000,-500.0,0.00032877,2]
[421710619,1778051450000,-500.0,0.00032877,2]
[421710621,1778051450000,-500.0,0.00032877,2]
[421710623,1778051450000,-500.0,0.00032877,2]
[421710629,1778051450000,-171.61789237,0.00033,120]
[421710626,1778051450000,-8693.0,0.00033,2]
[421710610,1778051450000,-500.0,0.00032877,2]
[421710630,1778051450000,-1550.83875413,0.00033,120]
[421710620,1778051450000,-500.0,0.00032877,2]
[421710617,1778051450000,-500.0,0.00032877,2]
[421710627,1778051450000,-228.54053186,0.00033,120]
[421710634,1778051450000,-629.27,0.00033137,2]
[421710625,1778051450000,-283.38513938,0.00032887,3]
[421710628,1778051450000,-381.87121067,0.00033,120]
[421710632,1778051450000,-570.278457,0.00033,14]
[421710631,1778051450000,-1111.52520475,0.00033,120]
[421710636,1778051450000,-342.0,0.00033262,30]
[421710637,1778051450000,-1100.0,0.00033262,30]
[421710635,1778051450000,-192.0,0.00033151,30]
[421710633,1778051450000,-192.0,0.00033,14]
[421710638,1778051450000,-427.0,0.00033262,30]
[421710641,1778051450000,-152.0,0.00033269,30]
[421710639,1778051450000,-153.0,0.00033262,30]
[421710613,1778051450000,-500.0,0.00032877,2]
[421710640,1778051450000,-447.0,0.00033269,30]
[421710624,1778051450000,-176.81839514,0.00032877,2]
[421710615,1778051450000,-500.0,0.00032877,2]
[421710599,1778051450000,-200.0,0.00032837,2]
[421710612,1778051450000,-500.0,0.00032877,2]
[421710648,1778051450000,-152.15955082,0.00033417,2]
[421710585,1778051450000,-159.0,0.00032274,30]
[421710586,1778051450000,-942.0,0.00032274,30]
[421710587,1778051450000,-151.01006351,0.00032305,2]
[421710591,1778051450000,-2567.0,0.00032589,5]
[421710597,1778051450000,-469.04,0.000328,7]
[421710593,1778051450000,-152.0,0.00032641,6]
[421710592,1778051450000,-2000.0,0.0003263,30]
[421710588,1778051450000,-233.51889341,0.00032325,2]
[421710590,1778051450000,-150.0,0.00032562,2]
[421710589,1778051450000,-200.0,0.00032537,2]
[421710594,1778051450000,-500.0,0.00032669,8]
[421710622,1778051450000,-500.0,0.00032877,2]
[421710595,1778051450000,-157.0,0.00032671,3]
[421710608,1778051450000,-500.0,0.00032877,2]
[421710602,1778051450000,-500.0,0.00032877,2]
[421710600,1778051450000,-242.15909246,0.00032873,2]
[421710601,1778051450000,-500.0,0.00032877,2]
[421710607,1778051450000,-364.17,0.00032877,2]
[421710605,1778051450000,-500.0,0.00032877,2]
[421710606,1778051450000,-229.76505251,0.00032877,2]
[421710604,1778051450000,-500.0,0.00032877,2]
[421710603,1778051450000,-500.0,0.00032877,2]
[421710609,1778051450000,-500.0,0.00032877,2]
[421710616,1778051450000,-500.0,0.00032877,2]
[421710611,1778051450000,-500.0,0.00032877,2]
[421710598,1778051450000,-501.52296871,0.00032826,25]
[421710649,1778051450000,-621.78829552,0.00033419,2]
[421710596,1778051450000,-1880.16398452,0.000328,120]
[421710663,1778051450000,-331.5694761,0.00034008,60]
[421710675,1778051450000,-153.0,0.00034262,30]
[421710672,1778051450000,-342.0,0.00034262,30]
[421710684,1778051450000,-270.0455652,0.00034517,2]
[421710680,1778051450000,-159.0,0.00034274,30]
[421710679,1778051450000,-578.0,0.00034274,30]
[421710692,1778051450000,-19502.82352349,0.00035,120]
[421710685,1778051450000,-192.0,0.00034521,30]
[421710683,1778051450000,-500.0,0.00034513,10]
[421710682,1778051450000,-1885.06854802,0.00034465,7]
[421710686,1778051450000,-177.93,0.00034567,120]
[421710687,1778051450000,-1500.0,0.00034795,2]
[421710689,1778051450000,-773.46239503,0.0003488,120]
[421710670,1778051450000,-469.04,0.000342,30]
[421710690,1778051450000,-368.73901256,0.00034961,2]
[421710688,1778051450000,-4000.0,0.00034849,60]
[421710694,1778051450000,-381.87121067,0.00035,120]
[421710693,1778051450000,-228.54053186,0.00035,120]
[421710695,1778051450000,-171.61789237,0.00035,120]
[421710698,1778051450000,-1015.9479407,0.00035,3]
[421710696,1778051450000,-1550.83875413,0.00035,120]
[421710699,1778051450000,-150.0,0.00035,2]
[421710697,1778051450000,-1111.52520475,0.00035,120]
[421710701,1778051450000,-324.37751906,0.00035,7]
[421710702,1778051450000,-152.0,0.00035025,8]
[421710700,1778051450000,-180.273,0.00035,2]
[421710644,1778051450000,-159.0,0.00033274,30]
[421710691,1778051450000,-2646.65350668,0.00035,14]
[421710666,1778051450000,-271.5036769,0.00034008,60]
[421710681,1778051450000,-942.0,0.00034274,30]
[421710678,1778051450000,-263.0,0.00034269,30]
[421710674,1778051450000,-427.0,0.00034262,30]
[421710642,1778051450000,-263.0,0.00033269,30]
[421710645,1778051450000,-942.0,0.00033274,30]
[421710646,1778051450000,-500.0,0.00033284,8]
[421710662,1778051450000,-283.6996602,0.00034008,60]
[421710661,1778051450000,-750.0,0.00034,2]
[421710656,1778051450000,-171.61789237,0.000339,120]
[421710652,1778051450000,-152.0,0.00033833,7]
[421710658,1778051450000,-1111.52520475,0.000339,120]
[421710653,1778051450000,-500.0,0.00033899,9]
[421710665,1778051450000,-701.6405734,0.00034008,60]
[421710654,1778051450000,-228.54053186,0.000339,120]
[421710657,1778051450000,-1550.83875413,0.000339,120]
[421710647,1778051450000,-2023.0,0.000333,7]
[421710650,1778051450000,-251.11897888,0.00033421,2]
[421710671,1778051450000,-170.10643696,0.00034247,30]
[421710655,1778051450000,-381.87121067,0.000339,120]
[421710659,1778051450000,-846.48838544,0.00033932,2]
[421710651,1778051450000,-4000.0,0.00033753,60]
[421710660,1778051450000,-260.4103811,0.00033969,2]
[421710643,1778051450000,-578.0,0.00033274,30]
[421710668,1778051450000,-2732.3,0.00034182,7]
[421710667,1778051450000,-500.0,0.00034147,30]
[421710676,1778051450000,-447.0,0.00034269,30]
[421710664,1778051450000,-500.0,0.00034008,60]
[421710677,1778051450000,-152.0,0.00034269,30]
[421710673,1778051450000,-1100.0,0.00034262,30]
[421710669,1778051450000,-150.0,0.0003419,2]
[421710724,1778051451000,-152.0,0.00035605,7]
[421710723,1778051451000,-152.0,0.00035605,7]
[421710730,1778051451000,-724.0,0.00035846,30]
[421710718,1778051451000,-5000.0,0.00035289,2]
[421710721,1778051451000,-5000.0,0.00035289,2]
[421710725,1778051451000,-290.39862941,0.00035613,2]
[421710729,1778051451000,-500.0,0.00035743,11]
[421710722,1778051451000,-1500.0,0.000353,7]
[421710720,1778051451000,-5000.0,0.00035289,2]
[421710727,1778051451000,-500.0,0.00035616,5]
[421710726,1778051451000,-500.0,0.00035616,5]
[421710719,1778051451000,-5000.0,0.00035289,2]
[421710728,1778051451000,-469.04,0.000357,30]
[421710715,1778051451000,-159.0,0.00035274,30]
[421710717,1778051451000,-5071.16480076,0.00035289,2]
[421710713,1778051451000,-263.0,0.00035269,30]
[421710706,1778051451000,-157.0,0.00035175,3]
[421710709,1778051451000,-427.0,0.00035262,30]
[421710714,1778051451000,-578.0,0.00035274,30]
[421710712,1778051451000,-152.0,0.00035269,30]
[421710710,1778051451000,-153.0,0.00035262,30]
[421710708,1778051451000,-1100.0,0.00035262,30]
[421710716,1778051451000,-942.0,0.00035274,30]
[421710707,1778051451000,-342.0,0.00035262,30]
[421710703,1778051451000,-280.03725112,0.00035065,2]
[421710705,1778051451000,-174.84,0.0003514,30]
[421710704,1778051451000,-500.0,0.00035128,10]
[421710711,1778051451000,-447.0,0.00035269,30]
[421710731,1778051451000,-150.0,0.00035899,2]
[421710738,1778051451000,-1550.83875413,0.00036,120]
[421710733,1778051451000,-4000.0,0.00035973,60]
[421710761,1778051451000,-500.0,0.00036357,12]
[421710732,1778051451000,-3772.22319857,0.00035946,30]
[421710754,1778051451000,-447.0,0.00036269,30]
[421710760,1778051451000,-159.64,0.00036301,30]
[421710758,1778051451000,-159.03519017,0.00036274,30]
[421710756,1778051451000,-263.0,0.00036269,30]
[421710759,1778051451000,-942.0,0.00036274,30]
[421710752,1778051451000,-427.0,0.00036262,30]
[421710751,1778051451000,-1100.0,0.00036262,30]
[421710757,1778051451000,-578.0,0.00036274,30]
[421710755,1778051451000,-152.0,0.00036269,30]
[421710750,1778051451000,-342.0,0.00036262,30]
[421710745,1778051451000,-2274.0,0.00036164,2]
[421710746,1778051451000,-1235.0,0.00036176,30]
[421710753,1778051451000,-153.0,0.00036262,30]
[421710747,1778051451000,-464.0,0.00036176,30]
[421710734,1778051451000,-274.95850481,0.00036,120]
[421710749,1778051451000,-197.0,0.00036247,30]
[421710737,1778051451000,-171.61789237,0.00036,120]
[421710735,1778051451000,-228.54053186,0.00036,120]
[421710741,1778051451000,-2732.3,0.00036153,30]
[421710739,1778051451000,-1111.52520475,0.00036,120]
[421710742,1778051451000,-644.79446246,0.00036158,2]
[421710743,1778051451000,-301.14337869,0.00036161,2]
[421710744,1778051451000,-1640.0,0.00036164,2]
[421710748,1778051451000,-152.0,0.00036217,9]
[421710740,1778051451000,-14746.43,0.00036,7]
[421710736,1778051451000,-381.87121067,0.00036,120]
[421710833,1778051452000,-300.0,0.00038277,2]
[421710838,1778051452000,-891.9241332,0.00038277,2]
[421710849,1778051452000,-474.98520692,0.00038277,2]
[421710829,1778051452000,-300.0,0.00038277,2]
[421710835,1778051452000,-526.86051061,0.00038277,2]
[421710834,1778051452000,-300.0,0.00038277,2]
[421710839,1778051452000,-309.13065885,0.00038277,2]
[421710858,1778051452000,-300.0,0.00038277,2]
[421710843,1778051452000,-300.0,0.00038277,2]
[421710841,1778051452000,-300.0,0.00038277,2]
[421710848,1778051452000,-300.0,0.00038277,2]
[421710846,1778051452000,-300.0,0.00038277,2]
[421710854,1778051452000,-300.0,0.00038277,2]
[421710847,1778051452000,-300.0,0.00038277,2]
[421710845,1778051452000,-300.06118393,0.00038277,2]
[421710856,1778051452000,-300.0,0.00038277,2]
[421710831,1778051452000,-603.45144378,0.00038277,2]
[421710842,1778051452000,-301.2859328,0.00038277,2]
[421710844,1778051452000,-300.0,0.00038277,2]
[421710836,1778051452000,-300.0,0.00038277,2]
[421710816,1778051452000,-300.0,0.00038277,2]
[421710827,1778051452000,-300.0,0.00038277,2]
[421710851,1778051452000,-300.0,0.00038277,2]
[421710813,1778051452000,-300.0,0.00038277,2]
[421710812,1778051452000,-300.0,0.00038277,2]
[421710814,1778051452000,-300.0,0.00038277,2]
[421710811,1778051452000,-300.0,0.00038277,2]
[421710810,1778051452000,-309.32134718,0.00038277,2]
[421710815,1778051452000,-1092.83356842,0.00038277,2]
[421710817,1778051452000,-300.0,0.00038277,2]
[421710818,1778051452000,-300.0,0.00038277,2]
[421710837,1778051452000,-1065.13491717,0.00038277,2]
[421710820,1778051452000,-300.0,0.00038277,2]
[421710821,1778051452000,-300.0,0.00038277,2]
[421710822,1778051452000,-300.0,0.00038277,2]
[421710819,1778051452000,-300.0,0.00038277,2]
[421710824,1778051452000,-300.0,0.00038277,2]
[421710823,1778051452000,-300.0,0.00038277,2]
[421710826,1778051452000,-491.85958444,0.00038277,2]
[421710828,1778051452000,-300.0,0.00038277,2]
[421710830,1778051452000,-300.0,0.00038277,2]
[421710832,1778051452000,-300.0,0.00038277,2]
[421710825,1778051452000,-300.0,0.00038277,2]
[421710857,1778051452000,-300.0,0.00038277,2]
[421710855,1778051452000,-343.40295571,0.00038277,2]
[421710850,1778051452000,-852.7601399,0.00038277,2]
[421710881,1778051452000,-483.27319916,0.00038277,2]
[421710882,1778051452000,-309.32134718,0.00038277,2]
[421710884,1778051452000,-300.0,0.00038277,2]
[421710885,1778051452000,-560.6948813,0.00038277,2]
[421710883,1778051452000,-300.0,0.00038277,2]
[421710886,1778051452000,-300.0,0.00038277,2]
[421710887,1778051452000,-1092.83356842,0.00038277,2]
[421710890,1778051452000,-300.0,0.00038277,2]
[421710893,1778051452000,-300.0,0.00038277,2]
[421710879,1778051452000,-300.0,0.00038277,2]
[421710888,1778051452000,-300.0,0.00038277,2]
[421710889,1778051452000,-300.0,0.00038277,2]
[421710891,1778051452000,-300.0,0.00038277,2]
[421710896,1778051452000,-300.0,0.00038277,2]
[421710894,1778051452000,-300.0,0.00038277,2]
[421710895,1778051452000,-490.61489498,0.00038277,2]
[421710898,1778051452000,-300.0,0.00038277,2]
[421710897,1778051452000,-300.0,0.00038277,2]
[421710900,1778051452000,-491.85958444,0.00038277,2]
[421710853,1778051452000,-1793.38851355,0.00038277,2]
[421710892,1778051452000,-300.0,0.00038277,2]
[421710874,1778051452000,-451.13853711,0.00038277,2]
[421710899,1778051452000,-300.0,0.00038277,2]
[421710878,1778051452000,-300.0,0.00038277,2]
[421710875,1778051452000,-300.0,0.00038277,2]
[421710840,1778051452000,-724.83131769,0.00038277,2]
[421710860,1778051452000,-309.07064608,0.00038277,2]
[421710859,1778051452000,-1145.24599896,0.00038277,2]
[421710862,1778051452000,-862.96230178,0.00038277,2]
[421710861,1778051452000,-300.0,0.00038277,2]
[421710863,1778051452000,-300.0,0.00038277,2]
[421710864,1778051452000,-300.0,0.00038277,2]
[421710865,1778051452000,-300.0,0.00038277,2]
[421710866,1778051452000,-300.0,0.00038277,2]
[421710852,1778051452000,-300.0,0.00038277,2]
[421710868,1778051452000,-300.0,0.00038277,2]
[421710873,1778051452000,-300.0,0.00038277,2]
[421710867,1778051452000,-310.3725982,0.00038277,2]
[421710872,1778051452000,-481.18706949,0.00038277,2]
[421710877,1778051452000,-300.0,0.00038277,2]
[421710880,1778051452000,-300.0,0.00038277,2]
[421710870,1778051452000,-463.08064867,0.00038277,2]
[421710871,1778051452000,-300.0,0.00038277,2]
[421710869,1778051452000,-300.0,0.00038277,2]
[421710876,1778051452000,-300.0,0.00038277,2]
[421710924,1778051453000,-300.0,0.00038277,2]
[421710929,1778051453000,-300.0,0.00038277,2]
[421710926,1778051453000,-300.0,0.00038277,2]
[421710925,1778051453000,-852.7601399,0.00038277,2]
[421710928,1778051453000,-1793.38851355,0.00038277,2]
[421710927,1778051453000,-300.0,0.00038277,2]
[421710930,1778051453000,-343.40295571,0.00038277,2]
[421710932,1778051453000,-300.0,0.00038277,2]
[421710936,1778051453000,-862.96230178,0.00038277,2]
[421710931,1778051453000,-300.0,0.00038277,2]
[421710935,1778051453000,-395.30336188,0.00038277,2]
[421710937,1778051453000,-300.0,0.00038277,2]
[421710940,1778051453000,-300.0,0.00038277,2]
[421710938,1778051453000,-300.0,0.00038277,2]
[421710939,1778051453000,-469.00907567,0.00038277,2]